fUST/lending_fUST_20250729
["ID","MTS","AMOUNT","RATE_DAILY","PERIOD"]
[375772750,1753739448266,-462.628082,0.00021739,2]
[375772751,1753739448277,-257.432955,0.00021739,2]
[375772752,1753739448287,-257.432955,0.00021739,2]
[375772753,1753739448297,-241.932769,0.00021739,2]
[375772754,1753739448308,-241.932769,0.00021739,2]
[375772755,1753739448318,-151.0,0.00021739,2]
[375772756,1753739448329,-299.344732,0.00021739,2]
[375772757,1753739448340,-151.0,0.00021739,2]
[375772758,1753739448351,-299.344732,0.00021739,2]
[375772759,1753739448363,-151.0,0.00021739,2]
[375772760,1753739448377,-500.0,0.0002174,2]
[375772761,1753739448523,-672.89646556,0.00021765,2]
[375772762,1753739448534,-200.0,0.00021767,15]
[375772763,1753739448544,-200.0,0.00021767,15]
[375772764,1753739448554,-200.0,0.00021767,15]
[375772765,1753739448564,-200.0,0.00021767,15]
[375772766,1753739448573,-320.0,0.00021767,15]
[375772767,1753739448583,-250.0,0.00021788,2]
[375772768,1753739448594,-623.23,0.00021903,2]
[375772769,1753739448604,-808.63,0.00021904,2]
[375772770,1753739448614,-1094.9,0.00021904,2]
[375772771,1753739448623,-460.0,0.00021904,2]
[375772772,1753739448633,-1894.34,0.00021904,2]
[375772773,1753739448643,-693.42,0.00021905,2]
[375772774,1753739448654,-181.65,0.00021906,2]
[375772775,1753739448663,-689.95,0.00021908,2]
[375772776,1753739448672,-2815.69,0.00021909,2]
[375772777,1753739448682,-460.0,0.00021909,2]
[375772778,1753739448692,-568.04,0.00021912,2]
[375772779,1753739448702,-839.84,0.00021912,2]
[375772780,1753739448711,-879.38079894,0.00021916,2]
[375772781,1753739448728,-43.76920106,0.00021916,2]
[375772782,1753739448738,-796.17,0.00021916,2]
[375772783,1753739448747,-460.0,0.00021916,2]
[375772784,1753739448758,-460.0,0.00021916,2]
[375772785,1753739448767,-460.0,0.00021916,2]
[375772786,1753739448777,-500.0,0.00021917,2]
[375772787,1753739448787,-500.0,0.00021917,2]
[375772788,1753739448797,-500.0,0.00021917,2]
[375772789,1753739448806,-500.0,0.00021917,2]
[375772790,1753739448815,-500.0,0.00021917,2]
[375772791,1753739448825,-500.0,0.00021917,2]
[375772792,1753739448834,-500.0,0.00021917,2]
[375772793,1753739448844,-200.0,0.00021918,2]
[375772794,1753739448854,-500.0,0.00021918,2]
[375772795,1753739448863,-360.0,0.00021967,2]
[375772796,1753739448873,-1500.0,0.00021968,2]
[375772797,1753739448882,-500.0,0.00021973,2]
[375772798,1753739448891,-353.30824519,0.00022,2]
[375772799,1753739448902,-48306.4034807,0.00022,2]
[375772800,1753739448911,-80515.45801646,0.00022,4]
[375772801,1753739448921,-551.48610052,0.00022,2]
[375772802,1753739448931,-151.0,0.00022,7]
[375772803,1753739448940,-151.0,0.00022,7]
[375772804,1753739448950,-151.0,0.00022,7]
[375772805,1753739448959,-151.0,0.00022,7]
[375772806,1753739448974,-151.0,0.00022,7]
[375772807,1753739448985,-151.0,0.00022,7]
[375772808,1753739448994,-462.628082,0.00022,7]
[375772809,1753739449004,-462.628082,0.00022,7]
[375772810,1753739449014,-257.432955,0.00022,7]
[375772811,1753739449024,-257.432955,0.00022,7]
[375772812,1753739449040,-241.932769,0.00022,7]
[375772813,1753739449050,-241.932769,0.00022,7]
[375772814,1753739449060,-151.0,0.00022,7]
[375772815,1753739449071,-151.0,0.00022,2]
[375772816,1753739449083,-299.344732,0.00022,7]
[375772817,1753739449092,-151.0,0.00022,7]
[375772818,1753739449103,-299.344732,0.00022,7]
[375772819,1753739449113,-155.014736,0.00022,7]
[375772820,1753739449123,-27111.62,0.00022,2]
[375772821,1753739449132,-1818.4767429,0.00022,7]
[375772822,1753739449571,-460.0,0.00020268,2]
[375772823,1753739449582,-460.0,0.00020542,2]
[375772824,1753739449592,-151.0,0.00020813,2]
[375772825,1753739449603,-460.0,0.00020816,2]
[375772826,1753739449612,-151.0,0.0002089,2]
[375772827,1753739449622,-460.0,0.0002109,2]
[375772828,1753739449635,-5990.0932571,0.00022,7]
[375772829,1753739449646,-218.84,0.00022,2]
[375772830,1753739449656,-151.0,0.00022011,7]
[375772831,1753739449666,-855.1,0.00022151,4]
[375772832,1753739449677,-157.371863,0.00022158,7]
[375772833,1753739449687,-151.0,0.00022158,7]
[375772834,1753739449700,-151.0,0.00022158,7]
[375772835,1753739449710,-151.0,0.00022158,7]
[375772836,1753739449721,-151.0,0.00022158,7]
[375772837,1753739449730,-151.0,0.00022158,7]
[375772838,1753739449740,-623.23,0.00022177,2]
[375772839,1753739449750,-808.63,0.00022178,2]
[375772840,1753739449759,-1094.9,0.00022178,2]
[375772841,1753739449769,-460.0,0.00022178,2]
[375772842,1753739449779,-1894.34,0.00022178,2]
[375772843,1753739449789,-693.42,0.00022179,2]
[375772844,1753739449799,-689.95,0.00022182,2]
[375772845,1753739449809,-2815.69,0.00022183,2]
[375772846,1753739449819,-314.45897748,0.00022183,2]
[375772847,1753739449832,-145.54102252,0.00022183,2]
[375772848,1753739449841,-568.04,0.00022186,2]
[375772849,1753739449851,-839.84,0.00022186,2]
[375772850,1753739449862,-923.15,0.0002219,2]
[375772851,1753739449872,-796.17,0.0002219,2]
[375772852,1753739449882,-460.0,0.0002219,2]
[375772853,1753739449892,-460.0,0.0002219,2]
[375772854,1753739449902,-460.0,0.0002219,2]
[375772855,1753739449911,-151.790869,0.00022199,7]
[375772856,1753739449921,-1292.46820501,0.000222,7]
[375772857,1753739449935,-638.13179499,0.000222,7]
[375772858,1753739449945,-151.0,0.000222,7]
[375772859,1753739449954,-151.0,0.000222,7]
[375772860,1753739449964,-151.0,0.000222,7]
[375772861,1753739449974,-151.0,0.000222,7]
[375772862,1753739449984,-153.385406,0.000222,7]
[375772863,1753739449994,-214.87999826,0.000222,7]
[375772864,1753739450004,-5178.318812,0.000222,7]
[375772865,1753739450140,-151.0,0.0002082,2]
[375772866,1753739450151,-2607.20497386,0.00020886,2]
[375772867,1753739450162,-772.32934733,0.00020886,2]
[375772868,1753739450172,-3379.53432119,0.00020886,2]
[375772869,1753739450182,-3379.53432119,0.00020886,2]
[375772870,1753739450195,-3379.53432119,0.00020886,2]
[375772871,1753739450205,-3379.53432119,0.00020886,2]
[375772872,1753739450215,-3379.53432119,0.00020886,2]
[375772873,1753739450225,-3379.53432119,0.00020886,2]
[375772874,1753739450234,-151.0,0.00020888,2]
[375772875,1753739450245,-151.0,0.0002089,2]
[375772876,1753739450255,-151.0,0.00021739,2]
[375772877,1753739450267,-151.0,0.00021739,2]
[375772878,1753739450280,-151.0,0.00022,7]
[375772879,1753739450290,-7456.41253117,0.000222,7]
[375772880,1753739450301,-312.16666667,0.000222,7]
[375772881,1753739450311,-486.3784504,0.0002239,2]
[375772882,1753739450322,-672.89646556,0.0002239,2]
[375772883,1753739450332,-623.23,0.00022451,2]
[375772884,1753739450342,-808.63,0.00022452,2]
[375772885,1753739450352,-1094.9,0.00022452,2]
[375772886,1753739450362,-460.0,0.00022452,2]
[375772887,1753739450372,-1894.34,0.00022452,2]
[375772888,1753739450382,-693.42,0.00022453,2]
[375772889,1753739450393,-689.95,0.00022456,2]
[375772890,1753739450403,-2376.5104023,0.00022457,2]
[375772891,1753739481244,150.0,0.0002264,30]
[375772897,1753739784211,414.72523,0.00018438,2]
[375772898,1753739955247,200.0,0.00018968,15]
[375772899,1753739956024,200.0,0.00018968,15]
[375772900,1753739957525,200.0,0.00018968,15]
[375772901,1753739958388,200.0,0.00018968,15]
[375772903,1753740135803,270.250767,0.00013699,2]
[375772907,1753740255560,200.0,0.00018968,15]
[375772908,1753740256347,200.0,0.00018968,15]
[375772909,1753740257146,200.0,0.00018968,15]
[375772910,1753740257950,200.0,0.00018968,15]
[375772911,1753740338508,156.4720611,0.00018496,2]
[375772912,1753740351115,-300.0,0.00018596,2]
[375772913,1753740351136,-300.0,0.00018596,2]
[375772914,1753740351157,-300.0,0.00018596,2]
[375772915,1753740351177,-300.0,0.00018596,2]
[375772916,1753740351198,-221.56694767,0.00018596,2]
[375772918,1753740454164,-978.43305233,0.00018596,2]
[375772919,1753740454187,-300.0,0.00018596,2]
[375772920,1753740454210,-3532.40218131,0.00018597,2]
[375772921,1753740555352,200.0,0.00018968,15]
[375772922,1753740556142,200.0,0.00018968,15]
[375772923,1753740556933,200.0,0.00018968,15]
[375772924,1753740557721,200.0,0.00018968,15]
[375772946,1753740632840,-300.0,0.00018596,2]
[375772947,1753740632851,-1200.0,0.00018596,2]
[375772948,1753740632861,-201.54059499,0.00018597,2]
[375772952,1753740638817,-14896.36244767,0.00018597,2]
[375772960,1753740639095,-6269.69477603,0.00018597,2]
[375772961,1753740639105,-156.3750634,0.00019177,2]
[375772962,1753740639115,-500.0,0.00019177,2]
[375772963,1753740639124,-500.0,0.00019177,2]
[375772964,1753740639134,-500.0,0.00019177,2]
[375772965,1753740639144,-500.0,0.00019177,2]
[375772966,1753740639154,-500.0,0.00019177,2]
[375772967,1753740639167,-614.13176582,0.00019177,2]
[375772968,1753740639180,-500.0,0.00019177,2]
[375772969,1753740639190,-397.097307,0.00019177,2]
[375772970,1753740639199,-500.0,0.00019177,2]
[375772971,1753740639211,-466.61825631,0.00019177,2]
[375772972,1753740639229,-500.0,0.00019177,2]
[375772973,1753740639250,-500.0,0.00019177,2]
[375772974,1753740639269,-500.0,0.00019177,2]
[375772975,1753740639280,-500.0,0.00019177,2]
[375772976,1753740639290,-500.0,0.00019177,2]
[375772977,1753740639300,-500.0,0.00019177,2]
[375772978,1753740639310,-419.74844633,0.00019178,2]
[375772979,1753740639320,-460.0,0.00019178,2]
[375772980,1753740639330,-158.60459045,0.00019178,2]
[375772981,1753740639340,-460.0,0.00019178,2]
[375772982,1753740639350,-238.51968945,0.00019178,2]
[375772983,1753740639360,-460.0,0.00019178,2]
[375772984,1753740639369,-460.0,0.00019178,2]
[375772985,1753740639379,-460.0,0.00019178,2]
[375772986,1753740639389,-460.0,0.00019178,2]
[375772987,1753740639398,-460.0,0.00019178,2]
[375772988,1753740639410,-460.0,0.00019178,2]
[375772989,1753740639422,-460.0,0.00019178,2]
[375772990,1753740639432,-460.0,0.00019178,2]
[375772991,1753740639442,-376.02015097,0.00019178,2]
[375772992,1753740639452,-485.39,0.00019178,2]
[375772993,1753740639461,-460.0,0.00019178,2]
[375772994,1753740639471,-393.29310321,0.00019178,2]
[375772995,1753740639481,-460.0,0.00019178,2]
[375772996,1753740639493,-460.0,0.00019178,2]
[375772997,1753740639503,-503.5394144,0.00019178,2]
[375772998,1753740639513,-460.0,0.00019178,2]
[375772999,1753740639522,-460.0,0.00019178,2]
[375773000,1753740639531,-460.0,0.00019178,2]
[375773001,1753740639541,-460.0,0.00019178,2]
[375773002,1753740639551,-460.0,0.00019178,2]
[375773003,1753740639560,-460.0,0.00019178,2]
[375773004,1753740639569,-460.0,0.00019178,2]
[375773005,1753740639579,-460.0,0.00019178,2]
[375773006,1753740639588,-460.0,0.00019178,2]
[375773007,1753740639598,-460.0,0.00019178,2]
[375773008,1753740639607,-784.43,0.00019178,2]
[375773009,1753740639618,-460.0,0.00019178,2]
[375773010,1753740639627,-891.18,0.00019178,2]
[375773011,1753740639637,-460.0,0.00019178,2]
[375773012,1753740639647,-460.0,0.00019178,2]
[375773013,1753740639657,-460.0,0.00019178,2]
[375773014,1753740639667,-460.0,0.00019178,2]
[375773015,1753740639676,-460.0,0.00019178,2]
[375773016,1753740639686,-312.9,0.00019178,2]
[375773017,1753740639696,-460.0,0.00019178,2]
[375773018,1753740639706,-460.0,0.00019178,2]
[375773019,1753740639715,-460.0,0.00019178,2]
[375773020,1753740639725,-485.59882669,0.00019178,2]
[375773021,1753740639734,-460.0,0.00019178,2]
[375773022,1753740639744,-460.0,0.00019178,2]
[375773023,1753740639753,-460.0,0.00019178,2]
[375773024,1753740639764,-1719.83,0.00019178,2]
[375773025,1753740639774,-460.0,0.00019178,2]
[375773026,1753740639783,-460.0,0.00019178,2]
[375773027,1753740639793,-460.0,0.00019178,2]
[375773028,1753740639803,-460.0,0.00019178,2]
[375773029,1753740639813,-599.25,0.00019178,2]
[375773030,1753740639823,-460.0,0.00019178,2]
[375773031,1753740639833,-460.0,0.00019178,2]
[375773032,1753740639842,-604.11,0.00019178,2]
[375773033,1753740639852,-460.0,0.00019178,2]
[375773034,1753740639862,-460.0,0.00019178,2]
[375773035,1753740639871,-460.0,0.00019178,2]
[375773036,1753740639881,-460.0,0.00019178,2]
[375773037,1753740639892,-460.0,0.00019178,2]
[375773038,1753740639903,-460.0,0.00019178,2]
[375773039,1753740639912,-218.3646845,0.00019178,2]
[375773040,1753740639922,-460.0,0.00019178,2]
[375773041,1753740639932,-178.26838523,0.00019178,2]
[375773042,1753740639941,-460.0,0.00019178,2]
[375773043,1753740639951,-460.0,0.00019178,2]
[375773044,1753740639960,-460.0,0.00019436,2]
[375773045,1753740639970,-460.0,0.00019436,2]
[375773046,1753740639980,-460.0,0.00019436,2]
[375773047,1753740639989,-460.0,0.00019436,2]
[375773048,1753740639999,-460.0,0.00019436,2]
[375773049,1753740640008,-460.0,0.00019436,2]
[375773050,1753740640018,-460.0,0.00019436,2]
[375773051,1753740640027,-323.14,0.00019436,2]
[375773052,1753740640037,-349.55762475,0.00019436,2]
[375773054,1753740640047,-460.0,0.00019436,2]
[375773055,1753740640057,-460.0,0.00019436,2]
[375773056,1753740640067,-460.0,0.00019436,2]
[375773057,1753740640077,-460.0,0.00019436,2]
[375773058,1753740640087,-553.45,0.00019436,2]
[375773059,1753740640096,-740.21,0.00019436,2]
[375773060,1753740640105,-460.0,0.00019436,2]
[375773061,1753740640115,-460.0,0.00019437,2]
[375773063,1753740640124,-460.0,0.00019437,2]
[375773064,1753740640134,-460.0,0.00019437,2]
[375773065,1753740640144,-380.64186571,0.00019438,2]
[375773066,1753740640155,-460.0,0.00019438,2]
[375773067,1753740640166,-460.0,0.00019438,2]
[375773068,1753740640175,-429.22481553,0.00019439,2]
[375773069,1753740640184,-252.30153891,0.00019439,2]
[375773070,1753740640194,-460.0,0.00019439,2]
[375773071,1753740640204,-460.0,0.00019439,2]
[375773072,1753740640214,-2533.85,0.00019439,2]
[375773073,1753740640223,-460.0,0.00019439,2]
[375773074,1753740640233,-460.0,0.00019439,2]
[375773075,1753740640242,-460.0,0.00019444,2]
[375773076,1753740640252,-1140.95,0.00019446,2]
[375773077,1753740640261,-460.0,0.0001945,2]
[375773078,1753740640271,-745.11,0.0001945,2]
[375773079,1753740640280,-460.0,0.00019452,2]
[375773080,1753740640290,-495.74,0.00019452,2]
[375773081,1753740640300,-460.0,0.00019452,2]
[375773082,1753740640309,-784.43,0.00019452,2]
[375773083,1753740640319,-891.18,0.00019452,2]
[375773085,1753740640328,-460.0,0.00019452,2]
[375773087,1753740640338,-460.0,0.00019452,2]
[375773089,1753740640348,-460.0,0.00019452,2]
[375773091,1753740640358,-1719.83,0.00019452,2]
[375773093,1753740640368,-460.0,0.00019452,2]
[375773095,1753740640377,-604.11,0.00019452,2]
[375773097,1753740640387,-460.0,0.00019452,2]
[375773099,1753740640396,-460.0,0.00019452,2]
[375773100,1753740640406,-287.57565052,0.00019544,2]
[375773102,1753740640419,-460.0,0.0001971,2]
[375773104,1753740640430,-460.0,0.0001971,2]
[375773106,1753740640439,-460.0,0.0001971,2]
[375773108,1753740640450,-460.0,0.0001971,2]
[375773110,1753740640460,-244.6954513,0.0001971,2]
[375773112,1753740640469,-460.0,0.0001971,2]
[375773114,1753740640478,-460.0,0.0001971,2]
[375773116,1753740640490,-460.0,0.0001971,2]
[375773118,1753740640500,-527.66,0.0001971,2]
[375773120,1753740640509,-553.45,0.0001971,2]
[375773122,1753740640519,-740.21,0.0001971,2]
[375773124,1753740640528,-460.0,0.0001971,2]
[375773126,1753740640538,-460.0,0.00019711,2]
[375773128,1753740640547,-460.0,0.00019711,2]
[375773129,1753740640557,-460.0,0.00019711,2]
[375773131,1753740640566,-2533.85,0.00019713,2]
[375773133,1753740640576,-460.0,0.00019713,2]
[375773135,1753740640586,-460.0,0.00019713,2]
[375773137,1753740640595,-460.0,0.00019718,2]
[375773139,1753740640605,-1140.95,0.0001972,2]
[375773141,1753740640614,-745.11,0.00019724,2]
[375773143,1753740640624,-460.0,0.00019726,2]
[375773145,1753740640634,-784.43,0.00019726,2]
[375773147,1753740640644,-891.18,0.00019726,2]
[375773149,1753740640653,-460.0,0.00019726,2]
[375773151,1753740640663,-1719.83,0.00019726,2]
[375773153,1753740640673,-153.92,0.00019726,2]
[375773155,1753740640682,-604.11,0.00019726,2]
[375773156,1753740640691,-428.68,0.00019726,2]
[375773158,1753740640701,-460.0,0.00019726,2]
[375773160,1753740640710,-500.0,0.00019733,2]
[375773162,1753740640720,-460.0,0.00019984,2]
[375773164,1753740640730,-460.0,0.00019984,2]
[375773166,1753740640739,-553.45,0.00019984,2]
[375773168,1753740640749,-740.21,0.00019984,2]
[375773169,1753740640758,-460.0,0.00019984,2]
[375773170,1753740640767,-460.0,0.00019985,2]
[375773171,1753740640777,-460.0,0.00019985,2]
[375773173,1753740640787,-460.0,0.00019985,2]
[375773174,1753740640796,-2533.85,0.00019987,2]
[375773175,1753740640805,-460.0,0.00019987,2]
[375773176,1753740640815,-460.0,0.00019987,2]
[375773177,1753740640824,-460.0,0.00019992,2]
[375773178,1753740640834,-1140.95,0.00019994,2]
[375773179,1753740640844,-745.11,0.00019998,2]
[375773180,1753740640855,-460.0,0.0002,2]
[375773181,1753740640866,-784.43,0.0002,2]
[375773182,1753740640876,-891.18,0.0002,2]
[375773183,1753740640887,-460.0,0.0002,2]
[375773184,1753740640897,-1719.83,0.0002,2]
[375773185,1753740640908,-604.11,0.0002,2]
[375773186,1753740640920,-270.250767,0.00020187,2]
[375773187,1753740640929,-382.82,0.00020251,3]
[375773188,1753740640939,-181.65,0.00020258,2]
[375773189,1753740640947,-553.45,0.00020258,2]
[375773190,1753740640958,-740.21,0.00020258,2]
[375773191,1753740640968,-460.0,0.00020259,2]
[375773192,1753740640977,-460.0,0.00020259,2]
[375773193,1753740640987,-460.0,0.00020259,2]
[375773194,1753740640997,-2533.85,0.00020261,2]
[375773195,1753740641007,-460.0,0.00020261,2]
[375773196,1753740641017,-460.0,0.00020261,2]
[375773197,1753740641026,-460.0,0.00020266,2]
[375773198,1753740641046,-1140.95,0.00020268,2]
[375773199,1753740641059,-745.11,0.00020272,2]
[375773200,1753740641069,-460.0,0.00020273,2]
[375773201,1753740641079,-784.43,0.00020273,2]
[375773202,1753740641088,-891.18,0.00020273,2]
[375773203,1753740641098,-460.0,0.00020273,2]
[375773204,1753740641107,-1719.83,0.00020273,2]
[375773205,1753740641117,-604.11,0.00020273,2]
[375773206,1753740641126,-300.0,0.00020278,2]
[375773207,1753740641136,-1680.0,0.00020377,2]
[375773208,1753740641146,-553.45,0.00020532,2]
[375773209,1753740641156,-740.21,0.00020532,2]
[375773210,1753740641165,-460.0,0.00020533,2]
[375773211,1753740641175,-460.0,0.00020533,2]
[375773212,1753740641185,-460.0,0.00020533,2]
[375773213,1753740641195,-2533.85,0.00020535,2]
[375773214,1753740641206,-460.0,0.00020535,2]
[375773215,1753740641215,-460.0,0.00020535,2]
[375773216,1753740641225,-191.41,0.00020537,3]
[375773217,1753740641234,-460.0,0.0002054,2]
[375773218,1753740641244,-1140.95,0.00020542,2]
[375773219,1753740641254,-745.11,0.00020546,2]
[375773220,1753740641264,-460.0,0.00020547,2]
[375773221,1753740641274,-784.43,0.00020547,2]
[375773222,1753740641283,-891.18,0.00020547,2]
[375773223,1753740641293,-460.0,0.00020547,2]
[375773224,1753740641302,-1719.83,0.00020547,2]
[375773225,1753740641312,-604.11,0.00020547,2]
[375773226,1753740641322,-574.23,0.00020634,3]
[375773227,1753740641332,-500.0,0.00020644,2]
[375773228,1753740641342,-553.45,0.00020806,2]
[375773229,1753740641352,-740.21,0.00020806,2]
[375773230,1753740641363,-460.0,0.00020807,2]
[375773231,1753740641373,-460.0,0.00020807,2]
[375773232,1753740641383,-460.0,0.00020807,2]
[375773233,1753740641392,-2533.85,0.00020809,2]
[375773234,1753740641402,-460.0,0.00020809,2]
[375773235,1753740641416,-460.0,0.00020809,2]
[375773236,1753740641425,-151.0,0.00020812,2]
[375773237,1753740641435,-1190.240233,0.00020812,2]
[375773238,1753740641445,-1190.240233,0.00020812,2]
[375773239,1753740641455,-460.0,0.00020814,2]
[375773240,1753740641465,-1140.95,0.00020816,2]
[375773241,1753740641474,-151.0,0.0002082,2]
[375773242,1753740641484,-315.480314,0.0002082,2]
[375773243,1753740641494,-315.480314,0.0002082,2]
[375773244,1753740641504,-954.533243,0.0002082,2]
[375773245,1753740641513,-954.533243,0.0002082,2]
[375773246,1753740641523,-151.0,0.0002082,2]
[375773247,1753740641533,-151.0,0.0002082,2]
[375773248,1753740641543,-745.11,0.0002082,2]
[375773249,1753740641553,-460.0,0.00020821,2]
[375773250,1753740641562,-784.43,0.00020821,2]
[375773251,1753740641572,-891.18,0.00020821,2]
[375773252,1753740641582,-460.0,0.00020821,2]
[375773253,1753740641591,-1719.83,0.00020821,2]
[375773254,1753740641600,-604.11,0.00020821,2]
[375773255,1753740641610,-200.0,0.0002083,15]
[375773256,1753740641619,-200.0,0.0002083,15]
[375773257,1753740641629,-200.0,0.0002083,15]
[375773258,1753740641639,-200.0,0.0002083,15]
[375773259,1753740641649,-320.0,0.0002083,15]
[375773260,1753740641660,-160.0,0.00020879,2]
[375773261,1753740641674,-160.0,0.00020884,2]
[375773262,1753740641684,-526.58819812,0.00020884,2]
[375773263,1753740641694,-231.34820253,0.00020884,2]
[375773264,1753740641704,-160.0,0.00020884,2]
[375773265,1753740641714,-160.0,0.00020884,2]
[375773266,1753740641724,-12634.73134317,0.00020884,2]
[375773267,1753740641734,-111.0261015,0.00020884,2]
[375773268,1753740641891,-729.88270277,0.00020884,2]
[375773269,1753740641901,-216.06083566,0.00020884,2]
[375773270,1753740641911,-214.87999826,0.00020884,2]
[375773271,1753740641921,-454.6043428,0.00020884,2]
[375773272,1753740641930,-160.0,0.00020884,2]
[375773273,1753740641939,-160.0,0.00020884,2]
[375773274,1753740641949,-312.16666667,0.00020887,2]
[375773275,1753740641958,-160.0,0.00020887,2]
[375773276,1753740641968,-160.0,0.00020887,2]
[375773277,1753740641977,-160.0,0.00020887,2]
[375773278,1753740641986,-160.0,0.00020887,2]
[375773279,1753740641995,-151.0,0.00020888,2]
[375773280,1753740642163,-320.48502,0.00020889,2]
[375773281,1753740642173,-320.48502,0.00020889,2]
[375773282,1753740642182,-160.0,0.0002089,2]
[375773283,1753740642192,-151.0,0.0002089,2]
[375773284,1753740642203,-151.503786,0.0002089,2]
[375773285,1753740642213,-1190.240233,0.0002089,2]
[375773286,1753740642222,-1190.240233,0.0002089,2]
[375773287,1753740642232,-320.48502,0.0002089,2]
[375773288,1753740642243,-1190.240233,0.0002089,2]
[375773289,1753740642253,-1190.240233,0.0002089,2]
[375773290,1753740642263,-320.48502,0.0002089,2]
[375773291,1753740642272,-315.480314,0.0002089,2]
[375773292,1753740642282,-315.480314,0.0002089,2]
[375773293,1753740642292,-954.533243,0.0002089,2]
[375773294,1753740642302,-954.533243,0.0002089,2]
[375773295,1753740642313,-151.0,0.0002089,2]
[375773296,1753740642323,-151.0,0.0002089,2]
[375773297,1753740642332,-553.45,0.0002108,2]
[375773298,1753740642342,-740.21,0.0002108,2]
[375773299,1753740642351,-460.0,0.00021081,2]
[375773300,1753740642362,-460.0,0.00021081,2]
[375773301,1753740642372,-460.0,0.00021081,2]
[375773302,1753740642383,-2533.85,0.00021083,2]
[375773303,1753740642393,-460.0,0.00021083,2]
[375773304,1753740642403,-460.0,0.00021083,2]
[375773305,1753740642416,-460.0,0.00021088,2]
[375773306,1753740642425,-1140.95,0.0002109,2]
[375773307,1753740642436,-745.11,0.00021094,2]
[375773308,1753740642445,-393.74,0.00021095,2]
[375773309,1753740642456,-784.43,0.00021095,2]
[375773310,1753740642468,-891.18,0.00021095,2]
[375773311,1753740642478,-460.0,0.00021095,2]
[375773312,1753740642490,-1719.83,0.00021095,2]
[375773313,1753740642502,-604.11,0.00021095,2]
[375773314,1753740642512,-927.8,0.00021253,4]
[375773315,1753740642522,-553.45,0.00021354,2]
[375773316,1753740642532,-740.21,0.00021354,2]
[375773317,1753740642541,-460.0,0.00021355,2]
[375773318,1753740642551,-460.0,0.00021355,2]
[375773319,1753740642561,-460.0,0.00021355,2]
[375773320,1753740642570,-2533.85,0.00021357,2]
[375773321,1753740642580,-460.0,0.00021357,2]
[375773322,1753740642590,-460.0,0.00021357,2]
[375773323,1753740642599,-460.0,0.00021362,2]
[375773324,1753740642609,-1140.95,0.00021364,2]
[375773325,1753740642619,-745.11,0.00021368,2]
[375773326,1753740642629,-784.43,0.00021369,2]
[375773327,1753740642638,-891.18,0.00021369,2]
[375773328,1753740642648,-460.0,0.00021369,2]
[375773329,1753740642658,-1719.83,0.00021369,2]
[375773330,1753740642668,-604.11,0.00021369,2]
[375773331,1753740642677,-260.0,0.00021427,2]
[375773332,1753740642687,-269.15858624,0.00021543,2]
[375773333,1753740642697,-500.0,0.00021573,2]
[375773334,1753740642706,-500.0,0.00021573,2]